Cogmind - Beta 12 @@@ ROGUE MODE // 2023.03.05 @ 16:41:00 Player: inSANE Result: Self-destructed Performance ------------- Evolutions (3) 1500 Regions Visited (10) 2000 Robots Destroyed (46) 230 Value Destroyed (1972) 1972 Prototype IDs (2) 40 Alien Tech Used (0) 0 Bonus (984) 984 TOTAL SCORE: 6726 Bonus ------- High Alert Combat Kills 67 Follower Combat Kills 217 Entered Garrisons 200 Used RIF Installer 500 Cogmind --------- Core Integrity 685/700 Matter 285/300 Energy 100/100 System Corruption 2% Temperature Cool (0) Movement Hovering (120) Ox1 Location -7/Factory Parts ------- > --- POWER (1) -------- (None) > --- PROPULSION (3) --- Airjet (fused) > --- UTILITY (6) ------ Medium Storage Unit Hacking Suite System Shield Relay Coupler [Swarmer] (6) Relay Coupler [Brawler] (27) Relay Coupler [Hunter] (23) > --- WEAPON (3) ------- Beam Rifle Remote Datajack > --- INVENTORY (10) --- Advanced Heat Sink Advanced Weight Redist. System Relay Coupler [Specialist] (33) Relay Coupler [Specialist] (25) Relay Coupler [Heavy] (10) Pulse Rifle Heavy Particle Gun Advanced EMP Blaster Peak State ------------ > --- POWER ------------ (None) > --- PROPULSION ------- Airjet Gravmag System > --- UTILITY ---------- Medium Storage Unit Improved Weapon Cycler Hacking Suite System Shield Relay Coupler [Swarmer] Relay Coupler [Hunter] > --- WEAPON ----------- Beam Rifle Remote Datajack > --- INVENTORY -------- Advanced Heat Sink Advanced Weight Redist. System Relay Coupler [Brawler] Relay Coupler [Specialist] Relay Coupler [Specialist] Relay Coupler [Heavy] Pulse Rifle Heavy Particle Gun Advanced EMP Blaster [Rating: 37] Favorites ----------- Power Ion Engine Engine Ion Engine Propulsion Compact Wheel Treads Light Treads Leg Carbon-fiber Leg Wheel Compact Wheel Hover Unit Gravmag System Utility Large Storage Unit Device Advanced Heat Sink Storage Large Storage Unit Processor Signal Interpreter Hackware Hacking Suite Protection Hardened Medium Armor Plating Weapon Beam Rifle Energy Gun Beam Rifle Ballistic Gun Assault Rifle Launcher Grenade Launcher Special Weapon Remote Datajack Build | -11 -10 -10 -10 -9 -8 -8 -8 -7 -7 -7 ------- Run | Jun Mat Min Exi Min Mat Gar Mat Fac Was Fac Slots Evolved 6 | . . . . . 4 . . 2 . . Power . | . . . . . . . . . . . Propulsion 1 | . . . . . 1 . . . . . Utility 4 | . . . . . 2 . . 2 . . Weapon 1 | . . . . . 1 . . . . . Parts Attached 84 | 6 7 13 . 9 8 34 3 1 1 2 Power 6 | 1 . 3 . 1 . 1 . . . . Engine 6 | 1 . 3 . 1 . 1 . . . . Core . | . . . . . . . . . . . Reactor . | . . . . . . . . . . . Propulsion 28 | 2 2 4 . 2 3 15 . . . . Treads 12 | . 1 2 . 2 . 7 . . . . Leg 3 | . . . . . . 3 . . . . Wheel 10 | 2 1 2 . . 3 2 . . . . Hover 3 | . . . . . . 3 . . . . Flight . | . . . . . . . . . . . Utility 23 | 1 4 . . . 3 8 3 1 1 2 Device 6 | . 2 . . . 1 2 . . 1 . Storage 4 | 1 1 . . . . 1 1 . . . Processor 2 | . 1 . . . 1 . . . . . Hackware 9 | . . . . . 1 3 2 1 . 2 Protection 2 | . . . . . . 2 . . . . Artifact . | . . . . . . . . . . . Weapon 27 | 2 1 6 . 6 2 10 . . . . Energy Gun 12 | 2 . 4 . 1 . 5 . . . . Energy Cannon . | . . . . . . . . . . . Ballistic Gun 9 | . 1 1 . 3 1 3 . . . . Ballistic Cannon . | . . . . . . . . . . . Launcher 5 | . . 1 . 2 1 1 . . . . Special Weapon 1 | . . . . . . 1 . . . . Impact Weapon . | . . . . . . . . . . . Slashing Weapon . | . . . . . . . . . . . Piercing Weapon . | . . . . . . . . . . . Special Melee Weapon . | . . . . . . . . . . . Unidentified Prototypes 1 | . . . . . . 1 . . . . Parts Lost 16 | . . . . 3 . 9 3 . . 1 Power 2 | . . . . . . 1 1 . . . Propulsion 9 | . . . . 2 . 5 1 . . 1 Utility 1 | . . . . . . 1 . . . . Weapon 4 | . . . . 1 . 2 1 . . . Highest Loss Streak 4 | . . . . 3 . 4 3 . . 1 To Critical Strikes . | . . . . . . . . . . . Average Slot Usage (%) 94 | . 98 99 100 98 87 95 95 65 70 74 Engine 10 | . 14 14 14 14 9 9 7 . . . Treads 4 | . 1 2 . 14 11 5 . . . . Leg 2 | . . . . . . 4 . . . . Wheel 11 | . 26 26 28 13 11 5 . . . . Hover 7 | . . . . . . 11 25 15 15 14 Device 5 | . 10 . . . 9 8 2 . 1 . Storage 10 | . 14 14 14 14 9 8 9 7 7 7 Processor 4 | . 1 14 14 14 12 . . . . . Hackware 9 | . . . . . . 12 24 26 30 36 Protection 1 | . . . . . . 3 . . . . Energy Gun 11 | . 14 12 14 11 9 11 9 7 7 7 Ballistic Gun 10 | . 14 14 14 14 13 9 7 . . . Special Weapon 3 | . . . . . . 4 9 7 7 7 Naked Turns . | . . . . . . . . . . . Heaviest Build 44 | 14 30 36 28 30 32 44 25 16 17 16 Greatest Support 60 | 32 32 40 32 40 40 60 26 17 17 17 Greatest Overweight (x) 3 | . . 1 . 1 3 1 1 . . 1 Average Overweight (x) . | . . . . . . . . . . . Largest Inventory Capacity 15 | 8 15 15 15 15 15 15 10 10 10 10 Average Capacity 12 | 7 11 15 15 15 15 11 9 10 10 10 Most Carried 15 | 6 12 15 15 15 15 15 10 10 9 9 Average Carried 11 | 3 7 14 15 14 14 10 9 9 9 8 Final Capacity 15 | 8 15 15 15 15 15 8 10 10 10 10 Final Carried 15 | 6 12 15 15 15 14 8 10 9 9 8 Class Distribution -------------------- 39% | Mutant 27% | Bothacker-Mutant 24% | Scavenger-Mutant 8% | Scavenger-Tank Dominant Class ---------------- Mutant | -10/Materials Mutant | -10/Mines Mutant | -10/Exiles Mutant | -9/Mines Scavenger-Mutant | -8/Materials Scavenger-Mutant | -8/Garrison Bothacker-Mutant | -8/Materials Bothacker-Mutant | -7/Factory Bothacker-Mutant | -7/Waste Bothacker-Mutant | -7/Factory Resources | -11 -10 -10 -10 -9 -8 -8 -8 -7 -7 -7 ----------- Run | Jun Mat Min Exi Min Mat Gar Mat Fac Was Fac Matter Collected 1369 | 259 107 208 . 103 61 523 78 . . 30 Remotely . | . . . . . . . . . . . Salvage Created 1511 | . 244 91 . 159 79 742 196 . . . Parts 93 | . 10 9 . 15 8 40 11 . . . Haulers Intercepted 1 | . . . . . 1 . . . . . Recyclers Shooed 3 | . 3 . . . . . . . . . Parts Field Recycled . | . . . . . . . . . . . Retrieved Matter . | . . . . . . . . . . . Parts Self-Destructed . | . . . . . . . . . . . Prevented . | . . . . . . . . . . . Kills | -11 -10 -10 -10 -9 -8 -8 -8 -7 -7 -7 ------- Run | Jun Mat Min Exi Min Mat Gar Mat Fac Was Fac Combat Hostiles Destroyed 41 | . 5 5 . 9 3 15 4 . . . Guns 27 | . 5 2 . 3 . 13 4 . . . AOE 13 | . . 3 . 6 3 1 . . . . Classes Destroyed 9 | . 4 . . . 2 3 . . . . Builder 1 | . . . . . 1 . . . . . Hauler 1 | . . . . . 1 . . . . . Recycler 2 | . 1 . . 1 . . . . . . Watcher 1 | . 1 . . . . . . . . . Swarmer 16 | . 3 3 . 7 3 . . . . . Grunt 13 | . 2 2 . 2 . 6 1 . . . Sentry 7 | . . . . . . 5 2 . . . Hunter 2 | . . . . . . 1 1 . . . Programmer 3 | . . . . . . 3 . . . . Best Kill Streak 5 | . 3 3 . 5 4 4 2 . . . Combat Bots Only 4 | . 2 3 . 4 3 4 2 . . . Max Kills in Single Turn 3 | . 1 3 . 3 2 1 1 . . . Gunslinging . | . . . . . . . . . . . Exploded 3 | . . 3 . 2 2 1 . . . . Melee . | . . . . . . . . . . . Uniques/NPCs Destroyed . | . . . . . . . . . . . Combat | -11 -10 -10 -10 -9 -8 -8 -8 -7 -7 -7 -------- Run | Jun Mat Min Exi Min Mat Gar Mat Fac Was Fac Damage Taken 2261 | . 166 232 . 290 9 1146 367 . . 51 Core 377 | . 40 24 . 101 . 130 67 . . 15 Absorbed by Shields . | . . . . . . . . . . . Core Remaining (%) 66 | 100 . . . 34 . . 64 . . . Volleys Fired 163 | . 25 12 . 18 5 80 21 . . 2 Largest 3 | . 2 2 . 2 3 3 2 . . 1 Hottest 148 | . 70 95 . 70 90 148 79 . . 5 Shots Fired 302 | . 43 19 . 26 9 171 32 . . 2 Gun 273 | . 43 16 . 23 6 159 26 . . . Cannon . | . . . . . . . . . . . Launcher 11 | . . 3 . 3 3 2 . . . . Special 18 | . . . . . . 10 6 . . 2 Kinetic 130 | . 18 10 . 16 4 71 11 . . . Thermal 143 | . 25 6 . 7 2 88 15 . . . Explosive 9 | . . 3 . 3 3 . . . . . Electromagnetic 2 | . . . . . . 2 . . . . Robot Hit Streak 26 | . 10 2 . 4 5 26 13 . . 1 Robot Miss Streak 7 | . 7 4 . 1 1 2 3 . . 2 Penetration Max . | . . . . . . . . . . . Secondary Targets 7 | . 1 1 . 1 . 3 1 . . . Max Gunslinging Chain 1 | . 1 1 . 1 . 1 1 . . . Shots Hit Robots 204 | . 25 9 . 15 5 126 23 . . 1 Core Hits 92 | . 11 7 . 16 7 42 9 . . . Critical Kills . | . . . . . . . . . . . Critical Parts Destroyed 1 | . . . . 1 . . . . . . Critical Strikes 3 | . . 1 . 2 . . . . . . Burn 2 | . . 1 . 1 . . . . . . Destroy 1 | . . . . 1 . . . . . . Melee Attacks . | . . . . . . . . . . . Impact . | . . . . . . . . . . . Slashing . | . . . . . . . . . . . Piercing . | . . . . . . . . . . . Sneak Attacks . | . . . . . . . . . . . Combat Hostiles . | . . . . . . . . . . . Follow-up Attacks . | . . . . . . . . . . . Damage Inflicted 3157 | . 314 340 . 489 234 1516 264 . . . Guns 2343 | . 314 103 . 144 33 1485 264 . . . Cannons . | . . . . . . . . . . . Explosions 814 | . . 237 . 345 201 31 . . . . Melee . | . . . . . . . . . . . Ramming . | . . . . . . . . . . . Kinetic 850 | . 151 51 . 82 8 469 89 . . . Thermal 1493 | . 163 52 . 62 25 1016 175 . . . Explosive 783 | . . 237 . 345 201 . . . . . Electromagnetic 31 | . . . . . . 31 . . . . Impact . | . . . . . . . . . . . Slashing . | . . . . . . . . . . . Piercing . | . . . . . . . . . . . Highest Corruption 2 | . . . . . . 1 1 . . 2 Average Corruption 1 | . . . . . . 1 1 . . 2 Corruption Purged . | . . . . . . . . . . . Corruption Blocked . | . . . . . . . . . . . Effects 12 | . . . . . . 7 2 . . 3 Message Errors 5 | . . . . . . 2 1 . . 2 Energy Discharges 1 | . . . . . . 1 . . . . Parts Fused 2 | . . . . . . 2 . . . . Data Loss (minor) 3 | . . . . . . 2 1 . . . Data Loss (major) 1 | . . . . . . . . . . 1 Overload Shots . | . . . . . . . . . . . Overflow Damage 5 | . . . . . 5 . . . . . Projectiles . | . . . . . . . . . . . Explosions 5 | . . . . . 5 . . . . . Melee . | . . . . . . . . . . . Knockbacks . | . . . . . . . . . . . Impact . | . . . . . . . . . . . Kinetic . | . . . . . . . . . . . Secondary . | . . . . . . . . . . . Self-Inflicted Damage 7 | . . . . 7 . . . . . . Shots 1 | . . . . 1 . . . . . . Rammed . | . . . . . . . . . . . Targets Rammed . | . . . . . . . . . . . Kicked . | . . . . . . . . . . . Crushed . | . . . . . . . . . . . Highest Temperature 285 | . 117 285 . 110 50 225 36 . . . Average Temperature 59 | . 36 141 . 44 29 68 16 . . . Received Heat Transfer 771 | . 63 120 . 102 . 360 81 . . 45 Siege Activations . | . . . . . . . . . . . Robots Corrupted . | . . . . . . . . . . . Combat Hostiles . | . . . . . . . . . . . Parts Fried . | . . . . . . . . . . . Impact Corruptions . | . . . . . . . . . . . Robots Melted 1 | . . . . . . 1 . . . . Combat Hostiles 1 | . . . . . . 1 . . . . Parts Melted 7 | . . . . 1 . 6 . . . . Heat Transferred 3737 | . 481 185 . 259 74 2294 444 . . . Parts Sabotaged . | . . . . . . . . . . . Parts Stolen . | . . . . . . . . . . . Parts Stripped . | . . . . . . . . . . . Power Chain Reactions . | . . . . . . . . . . . Missiles Intercepted . | . . . . . . . . . . . Alert | -11 -10 -10 -10 -9 -8 -8 -8 -7 -7 -7 ------- Run | Jun Mat Min Exi Min Mat Gar Mat Fac Was Fac Peak Influence 753 | . 198 222 . 230 183 753 376 147 81 97 Initial 358 | . . 76 . . 89 118 358 142 51 56 Average 251 | . 120 95 . 109 152 426 297 144 72 59 Maximum Alert Level 3 | . . 1 . 1 . 3 1 . . . Low Security (%) 51 | 100 100 89 . 72 100 9 . 100 100 100 Level 1 21 | . . 10 . 27 . 23 100 . . . Level 2 25 | . . . . . . 60 . . . . Level 3 2 | . . . . . . 5 . . . . Level 4 . | . . . . . . . . . . . Level 5 . | . . . . . . . . . . . High Security . | . . . . . . . . . . . Max Security . | . . . . . . . . . . . Squads Dispatched 2 | . 1 . . . . . 1 . . . Investigation 1 | . . . . . . . 1 . . . Extermination . | . . . . . . . . . . . Reinforcement 1 | . 1 . . . . . . . . . Assault . | . . . . . . . . . . . Garrison . | . . . . . . . . . . . Intercept . | . . . . . . . . . . . Searches Triggered . | . . . . . . . . . . . Construction Impeded . | . . . . . . . . . . . Haulers Reinforced . | . . . . . . . . . . . Active Scanning Responses . | . . . . . . . . . . . Cargo Convoy Interrupts . | . . . . . . . . . . . Stealth | -11 -10 -10 -10 -9 -8 -8 -8 -7 -7 -7 --------- Run | Jun Mat Min Exi Min Mat Gar Mat Fac Was Fac Distress Signals 3 | . . . . . . . 2 . . 1 Communications Jammed . | . . . . . . . . . . . Distress Signals . | . . . . . . . . . . . Times Spotted 74 | . 9 4 . 11 3 22 12 . 6 7 Peak Tracking Total 7 | . 3 3 . 5 3 4 7 . 6 6 Tactical Retreats 5 | . 1 . . 2 . . . . . 2 Traps | -11 -10 -10 -10 -9 -8 -8 -8 -7 -7 -7 ------- Run | Jun Mat Min Exi Min Mat Gar Mat Fac Was Fac Traps Triggered 10 | . . 3 . . . 5 . 1 . 1 Indirectly . | . . . . . . . . . . . Trap Hack Attempts . | . . . . . . . . . . . Triggered . | . . . . . . . . . . . Disarmed . | . . . . . . . . . . . Reprogrammed . | . . . . . . . . . . . Reused . | . . . . . . . . . . . Traps Extracted . | . . . . . . . . . . . Installed . | . . . . . . . . . . . Triggered . | . . . . . . . . . . . Machines | -11 -10 -10 -10 -9 -8 -8 -8 -7 -7 -7 ---------- Run | Jun Mat Min Exi Min Mat Gar Mat Fac Was Fac Machines Disabled 4 | . . . . . . 4 . . . . Max in Single Turn 1 | . . . . . . 1 . . . . Garrison Relay 3 | . . . . . . 3 . . . . Machines Repaired . | . . . . . . . . . . . Machines Sabotaged . | . . . . . . . . . . . Overloaded Fab Kills . | . . . . . . . . . . . Hacking | -11 -10 -10 -10 -9 -8 -8 -8 -7 -7 -7 --------- Run | Jun Mat Min Exi Min Mat Gar Mat Fac Was Fac Machines Accessed 13 | . 1 1 . . 1 3 3 1 . 3 Terminals 8 | . . . . . . 3 3 . . 2 Fabricators 1 | . . . . . . . . 1 . . Repair Stations . | . . . . . . . . . . . Recycling Units 1 | . 1 . . . . . . . . . Scanalyzers 1 | . . . . . . . . . . 1 Garrison Access 1 | . . . . . 1 . . . . . Total Hacks 30 | . 2 1 . . 2 5 10 2 . 8 Successful 15 | . 2 1 . . 1 4 4 1 . 2 Failed 15 | . . . . . 1 1 6 1 . 6 Catastrophic 1 | . . . . . . . . . . 1 Database Lockouts . | . . . . . . . . . . . Manual 19 | . 2 . . . . 3 9 . . 5 Terminals 20 | . . . . . . 5 10 . . 5 Fabricators 2 | . . . . . . . . 2 . . Repair Stations . | . . . . . . . . . . . Recycling Units 2 | . 2 . . . . . . . . . Scanalyzers 3 | . . . . . . . . . . 3 Garrison Access 2 | . . . . . 2 . . . . . Terminal Hacks 4 | . . 1 . . . 2 1 . . . Open Door 1 | . . 1 . . . . . . . . Emergency Access Points 1 | . . . . . . 1 . . . . Unreport Threat 1 | . . . . . . . 1 . . . Garrison Registry 1 | . . . . . . 1 . . . . Fabricator Hacks 1 | . . . . . . . . 1 . . Build 1 | . . . . . . . . 1 . . Repair Station Hacks . | . . . . . . . . . . . Recycling Unit Hacks . | . . . . . . . . . . . Scanalyzer 2 | . . . . . . . . . . 2 Insert Component 1 | . . . . . . . . . . 1 Analyze 1 | . . . . . . . . . . 1 Garrison Access Hacks 1 | . . . . . 1 . . . . . Unlock Access 1 | . . . . . 1 . . . . . Unauthorized Hacks 7 | . 2 . . . . 2 3 . . . Terminals 5 | . . . . . . 2 3 . . . Botnet 5 | . . . . . . 2 3 . . . Fabricators . | . . . . . . . . . . . Repair Stations . | . . . . . . . . . . . Recycling Units 2 | . 2 . . . . . . . . . Reject 1 | . 1 . . . . . . . . . Mask 1 | . 1 . . . . . . . . . Scanalyzers . | . . . . . . . . . . . Garrison Access . | . . . . . . . . . . . Data Cores Recovered . | . . . . . . . . . . . Used . | . . . . . . . . . . . Hacking Detections 9 | . . . . . 1 3 3 . . 2 Full Trace Events 1 | . . . . . . . 1 . . . Feedback Events . | . . . . . . . . . . . Feedback Blocked . | . . . . . . . . . . . Robot Schematics Acquired . | . . . . . . . . . . . Robots Built . | . . . . . . . . . . . Authchips . | . . . . . . . . . . . Time 134 | . . . . . . . . 134 . . Total Robot Build Rating . | . . . . . . . . . . . Part Schematics Acquired 1 | . . . . . . . . . . 1 Parts Built . | . . . . . . . . . . . Authchips . | . . . . . . . . . . . Time . | . . . . . . . . . . . Total Part Build Rating . | . . . . . . . . . . . Parts Repaired . | . . . . . . . . . . . Time . | . . . . . . . . . . . Parts Recycled . | . . . . . . . . . . . Recycled Matter . | . . . . . . . . . . . Retrieved Matter . | . . . . . . . . . . . Retrieved Components . | . . . . . . . . . . . Parts Scanalyzed 1 | . . . . . . . . . . 1 Part Schematics Acquired 1 | . . . . . . . . . . 1 Parts Damaged . | . . . . . . . . . . . Bothacking | -11 -10 -10 -10 -9 -8 -8 -8 -7 -7 -7 ------------ Run | Jun Mat Min Exi Min Mat Gar Mat Fac Was Fac Used RIF Installer 1 | . . . . . . 1 . . . . Robots Hacked 11 | . . . . . . 6 4 . . 1 Non-combat . | . . . . . . . . . . . Combat 11 | . . . . . . 6 4 . . 1 Robot Hacks Applied 11 | . . . . . . 6 4 . . 1 formatsys_high 11 | . . . . . . 6 4 . . 1 Relay Couplers Released 9 | . . . . . . 9 . . . . Machine Destruction 9 | . . . . . . 9 . . . . Attached 6 | . . . . . . 3 1 1 . 1 Fabnet Peak Effective % . | . . . . . . . . . . . Robots Rewired . | . . . . . . . . . . . Allies Hacked . | . . . . . . . . . . . Hacks Repelled . | . . . . . . . . . . . Allies | -11 -10 -10 -10 -9 -8 -8 -8 -7 -7 -7 -------- Run | Jun Mat Min Exi Min Mat Gar Mat Fac Was Fac Total Allies 11 | . . . . . . 6 4 . . 1 Largest Group 5 | . . . . . . 5 3 . . 1 Highest-Rated Group 78 | . . . . . . 78 46 . . 20 Highest-Rated Ally 20 | . . . . . . 16 16 . . 20 Total Orders 1 | . . . . . . . 1 . . . ROAM 1 | . . . . . . . 1 . . . Ally Attacks 40 | . . . . . . 21 17 . . 2 Total Damage 636 | . . . . . . 373 206 . . 57 Kills 9 | . . . . . . 5 3 . . 1 Allies Corrupted . | . . . . . . . . . . . Allies Melted 1 | . . . . . . . . . . 1 Intel | -11 -10 -10 -10 -9 -8 -8 -8 -7 -7 -7 ------- Run | Jun Mat Min Exi Min Mat Gar Mat Fac Was Fac Robot Analysis Total . | . . . . . . . . . . . Derelict Logs Recovered 1 | . . 1 . . . . . . . . Drone Launches . | . . . . . . . . . . . Drone Recoveries . | . . . . . . . . . . . Exploration | -11 -10 -10 -10 -9 -8 -8 -8 -7 -7 -7 ------------- Run | Jun Mat Min Exi Min Mat Gar Mat Fac Was Fac Turns Passed 3239 | 52 392 485 126 240 172 1294 231 23 46 178 Spaces Moved 2835 | 34 296 398 127 141 123 1080 237 40 77 282 Core 1 | 1 . . . . . . . . . . Treads 209 | . 1 1 . 56 39 112 . . . . Legs 106 | . . . . . . 106 . . . . Wheels 1170 | 33 295 397 127 85 84 149 . . . . Hover 1349 | . . . . . . 713 237 40 77 282 Flight . | . . . . . . . . . . . Fastest Speed 50 | 50 100 100 100 100 80 52 52 56 56 56 Average Speed 84 | 98 100 107 100 124 113 78 52 56 56 58 Slowest Speed 240 | 100 160 160 100 240 160 190 116 56 56 120 Overloaded Moves . | . . . . . . . . . . . Propulsion Burnouts . | . . . . . . . . . . . Robots Hopped . | . . . . . . . . . . . Cave-ins Triggered . | . . . . . . . . . . . Exploration Rate (%) 37 | 3 49 86 49 33 13 68 28 3 71 8 Regions Visited 10 Branch Regions 3 Pre-discovered Areas 1 | . . 1 . . . . . . . . Known Exits Taken 5 | . 1 1 1 1 1 . . . . . Unknown Exits Taken 2 | 1 . . . . . . 1 . . . Scrap Searched . | . . . . . . . . . . . Spaces Dug 9 | . . 9 . . . . . . . . Terrain Destroyed 55 | . . 29 . 14 12 . . . . . Melee . | . . . . . . . . . . . Projectile . | . . . . . . . . . . . AOE 55 | . . 29 . 14 12 . . . . . Terrain Rammed . | . . . . . . . . . . . Walls Destroyed . | . . . . . . . . . . . Machines Disabled . | . . . . . . . . . . . Actions | -11 -10 -10 -10 -9 -8 -8 -8 -7 -7 -7 --------- Run | Jun Mat Min Exi Min Mat Gar Mat Fac Was Fac Total 3417 | 49 347 435 126 182 152 1400 313 41 79 293 Wait 183 | 3 9 3 . 8 3 105 46 . . 6 Move 2825 | 33 295 397 126 140 122 1078 236 40 76 282 Hop . | . . . . . . . . . . . Pick Up 55 | 7 6 5 . 4 6 24 3 . . . Fast Attach 28 | 5 4 4 . . 4 9 . . 1 1 Attach 21 | 1 . 1 . 3 2 12 1 1 . . Detach 11 | . 2 . . . 2 5 1 . 1 . Swap 36 | . 3 8 . 6 2 14 2 . . 1 Drop 39 | . 3 5 . 3 6 20 1 . 1 . Fire 163 | . 25 12 . 18 5 80 21 . . 2 Melee . | . . . . . . . . . . . Ram . | . . . . . . . . . . . Kick . | . . . . . . . . . . . Crush . | . . . . . . . . . . . Escape Stasis 47 | . . . . . . 47 . . . . Rewire 9 | . . . . . . 6 2 . . 1 Trap . | . . . . . . . . . . . Miscellaneous . | . . . . . . . . . . . Route ------- -11/Junkyard -10/Materials -10/Mines (discovered 3 exits: [*Mat x2] / *Exi) -10/Exiles -9/Mines -8/Materials -8/Garrison (discovered 3 exits: *Mat x3) -8/Materials -7/Factory -7/Waste -7/Factory History --------- Turn | Location | Event 26 | -11/Junkyard | Discovered new exit (range 16) 53 | -11/Junkyard | Entered Materials 301 | -10/Materials | Build established: Mutant 380 | -10/Materials | Discovered new exit (range 11) 444 | -10/Materials | Identified exit to Mines 445 | -10/Materials | Entered Mines 455 | -10/Mines | YI-UF0 nonchalantly dropped a Grenade Launcher on the ground 526 | -10/Mines | Met a Derelict who couldn't figure out how to use a Trap Extractor 686 | -10/Mines | Discovered new exit (range 5) 732 | -10/Mines | Learned location of Zion (-7) 737 | -10/Mines | Discovered new exit (range 6) 925 | -10/Mines | Deemed a non-threat by the Exiles lab entrance 926 | -10/Mines | Discovered new exit (range 5) 929 | -10/Mines | Identified exit to Exiles 930 | -10/Mines | Entered Exiles 953 | -10/Exiles | Met 8R-AWN 972 | -10/Exiles | Met EX-HEX 1010 | -10/Exiles | Met EX-DEC 1046 | -10/Exiles | Discovered new exit (range 12) 1055 | -10/Exiles | Identified exit to Mines 1056 | -10/Exiles | Entered Mines 1063 | -9/Mines | Received a Rocket Launcher from a helpful Derelict 1100 | -9/Mines | Met a Derelict bent on vengeance 1178 | -9/Mines | Core integrity fell below 50% 1207 | -9/Mines | Lost 3 parts (2n1w) 1280 | -9/Mines | Discovered new exit (range 10) 1295 | -9/Mines | Identified exit to Materials 1296 | -9/Mines | Entered Materials 1296 | -8/Materials | Evolved 4 slots: Propulsion x1, Utility x2, Weapon x1 1466 | -8/Materials | Identified exit to Garrison 1468 | -8/Materials | Entered Garrison 1576 | -8/Garrison | Triggered checkpoint 1625 | -8/Garrison | Discovered new exit (range 38) 1625 | -8/Garrison | Discovered new exit (range 71) 1625 | -8/Garrison | Discovered new exit (range 63) 1634 | -8/Garrison | Garrison Relay disabled 1708 | -8/Garrison | Triggered checkpoint 1788 | -8/Garrison | Lost 4 parts (4n) 1864 | -8/Garrison | Triggered checkpoint 2039 | -8/Garrison | Lost 4 parts (1p1n1u1w) 2082 | -8/Garrison | Build established: Scavenger-Mutant 2121 | -8/Garrison | Installed Relay Interface Framework 2424 | -8/Garrison | Garrison Relay disabled 2552 | -8/Garrison | Garrison Relay disabled 2558 | -8/Garrison | Triggered checkpoint 2588 | -8/Garrison | Triggered checkpoint 2634 | -8/Garrison | Triggered checkpoint 2656 | -8/Garrison | Build established: Bothacker-Mutant 2762 | -8/Garrison | Entered Materials 2762 | -8/Materials | Accompanied by 3 allies 2987 | -8/Materials | Discovered new exit (range 10) 2993 | -8/Materials | Entered Factory 2993 | -7/Factory | Evolved 2 slots: Utility x2 2997 | -7/Factory | Lost 3 parts (1p1n1w) 3016 | -7/Factory | Sucked down chute 3016 | -7/Factory | Entered Waste 3020 | -7/Waste | Spotted C-40 Crusher 3030 | -7/Waste | Spotted C-40 Crusher 3032 | -7/Waste | Spotted C-40 Crusher 3034 | -7/Waste | Spotted C-40 Crusher 3036 | -7/Waste | Spotted C-40 Crusher 3046 | -7/Waste | Spotted C-40 Crusher 3050 | -7/Waste | Discovered new exit (range 16) 3062 | -7/Waste | Entered Factory 3240 | -7/Factory | Self-destructed Last Messages --------------- Ready to analyze. >>Scanalyze Scanning: Hvy. Particle Gun... Schematic downloaded. 03180_ :YPARPXEHAGFGU3HV1OX>formatsys_high Rerouting network defenses. Erasing system data. Installing primary routines, ETC: 6. 03227_ Reactivated Gladiator 4a. 03234_ G-47 Trooper suffers critical hit (Smash). 03234_ Destroyed Particle Gun. 03234_ G-47 Trooper system corrupted by crushing effect. 03238_ Gladiator 4a critical meltdown. Map ----- +----------------------------------------------------+ | ??????????????????????????????????????? #?? | | ???????????????????????????????????????? #?? | | ?????????????????????????????????######### #?? | | ?????????????????????????????? # #?? | | ?????????????????????????????? """"""""" # #?? | | ?????????????????????????????? # ### | | ?????????????????????????????# """"""""" # | | ?????????????????????????????# # | | ?????????????????????????????# """"""""" # | | ?????????????????????????????# # "" | | ???????????????????????????###########+### """ | | ???????????????????????????# "T | | ???????????????????????????# """ | | ???????????????????????????# "" | | ???????????????????????????# | | ???????????????????????????# | | ???????????????????????????# #######+##### | | ???????????????????????????# # | | ???????????????????????????# + % | | ??????? ""?????????????????# ##### """""" | | ??????? """"???????????????# #???# """""" | | ???+ """ ############## #???# """""" | | ???# + #???# """""" ! | | ???+ """"" ################+####### | | ????????""""????????????# g% # """""" | | ?????????"??????????????#@"""" """" # """""" | | ????????????????????????# """" """" # "?"""" | | ????????????????????????# """"="""" # "???"" | | ????????????????????????# """"%"""" # ??? | | ????????????????????????# """" """" ###???####### | | ????????????????????????# """" """" #???????????? | | ????????????????????????# #???????????? | | ????????????????????????# | "" #???????????? | | ????????????????????????# """ #???????????? | | ????????????????????????# S" #???????????? | | ????????????????????????# #???????????? | | ????????????????????????##############???????????? | | ?????????????????????????????????????????????????? | | ?????????????????????????????????????????????????? | | ?????????????????????????????????????????????????? | | ?????????????????????????????????????????????????? | | ?????????????????????????????????????????????????? | | ?????????????????????????????????????????????????? | | ?????????????????????????????????????????????????? | | ?????????????????????????????????????????????????? | | ?????????????????????????????????????????????????? | | ?????????????????????????????????????????????????? | | ?????????????????????????????????????????????????? | | ?????????????????????????????????????????????????? | | ?????????????????????????????????????????????????? | +----------------------------------------------------+ Best States ------------- Heat Dissipation 50 Energy Generation 18 Energy Capacity 250 Matter Stores 300 Matter Capacity 300 Sight Range 16 Robot Scan Range 14 Terrain Scan Density 10 Armor Coverage 225 Evasion (%) 55 Recoil Reduction 3 Offensive Hacking 10 Defensive Hacking 20 Relay Coupler Types 3 Relay Coupler Value 69 Item Schematics ----------------- Hvy. Particle Gun | -7/Factory | Scanalyzed Robot Schematics ------------------ None Fabricated ------------ Nothing Alien Tech Used ----------------- None Achievements -------------- None Challenges ------------ None Game ------ Seed LegGuidedUnit Manual? 0 Play Time 01:10:37 Cumulative 144.8 hours Start 2023.03.05 @ 15:18:10 End 2023.03.05 @ 16:41:00 Sessions 1 Manual Loads 0 Difficulty Rogue Special Mode None Game No. 82 Rogue 82 Adventurer 0 Explorer 0 Win Type - Total 0 Types 0/0/0/0/0/0/0/0/0 Lore% 48 Gallery% 58 Achievement% 57 Wizard Run 0 Options --------- ASCII 0 Keyboard 1 Movement Numpad Keybinds 1 Fullscreen 1 Font 18/SmallcapsGlow Map View 76x50 Tactical HUD 1 Map Filters NONE Filters NONE Steam 1 RUN: 280c832d-fced-432b-8495-eca96ebf2553